[Event "Speed Chess Championship 2020"]
[Site "Online"]
[Date "2020.11.15"]
[Round "1.12"]
[White "Caruana, Fabiano"]
[Black "Duda, Jan-Krzysztof"]
[Result "1-0"]
[ECO "B90"]
[WhiteElo "2823"]
[BlackElo "2743"]
[Annotator "ChessBase"]
[PlyCount "109"]
[EventDate "2020.10.31"]
[EventType "k.o."]
[EventCountry "NET"]
[SourceTitle "playchess.com"]
[Source "ChessBase"]
[SourceQuality "1"]
[TimeControl "180+1"]

1. e4 {[%emt 0:00:01]} c5 {[%emt 0:00:01]} 2. Nf3 {[%emt 0:00:00]} d6 {[%emt 0:00:00]} 3. d4 {[%emt 0:00:01]} cxd4 {[%emt 0:00:00]} 4. Nxd4 {[%emt 0:00:00]} Nf6 {[%emt 0:00:00]} 5. Nc3 {[%emt 0:00:00]} a6 {[%emt 0:00:01]} 6. h4 {[%emt 0:00:01]} e5 {[%emt 0:00:01]} 7. Nb3 {[%emt 0:00:00]} Be6 {[%emt 0:00:00]} 8. f4 {[%emt 0:00:01]} exf4 {[%emt 0:00:00]} 9. Bxf4 {[%emt 0:00:00]} Nc6 {[%emt 0:00:01]} 10. Qd2 {[%emt 0:00:01]} d5 {[%emt 0:00:00]} 11. O-O-O {[%emt 0:00:01]} Bb4 {[%emt 0:00:01]} 12. Bg5 {[%emt 0:00:01]} Nxe4 {[%emt 0:00:14]} 13. Qe3 {[%emt 0:00:02]} Nxg5 {[%emt 0:00:00]} 14. Nxd5 {[%emt 0:00:01]} Bd6 {[%emt 0:00:02]} 15. hxg5 {[%emt 0:00:00]} Ne7 {[%emt 0:00:00]} 16. Bc4 {[%emt 0:00:02]} Nf5 {[%emt 0:00:37]} 17. Qd2 {[%emt 0:00:02]} Ng3 {[%emt 0:00:13]} 18. Rh4 {[%emt 0:00:04]} b5 {[%emt 0:00:07]} 19. Bd3 {[%emt 0:00:07]} Bxd5 {[%emt 0:00:12]} 20. Rd4 {[%emt 0:00:02]} Qc7 {[%emt 0:00:26]} 21. Qe1+ {[%emt 0:00:35]} Qe7 {[%emt 0:00:13]} 22. Rxd5 {[%emt 0:00:07]} Bf4+ {[%emt 0:00:05]} 23. Kb1 {[%emt 0:00:02]} Qxe1 {[%emt 0:00:01]} 24. Rxe1+ {[%emt 0:00:02]} Kf8 {[%emt 0:00:00]} 25. Nc5 {[%emt 0:00:26]} g6 {[%emt 0:00:01]} 26. Rd4 {[%emt 0:00:24]} Bxg5 {[%emt 0:00:22]} 27. Rg4 {[%emt 0:00:02]} Bd8 {[%emt 0:00:14]} 28. Rxg3 {[%emt 0:00:09]} Bh4 {[%emt 0:00:01]} 29. Ree3 {[%emt 0:00:04]} Bxg3 {[%emt 0:00:04]} 30. Rxg3 {[%emt 0:00:00]} Kg7 {[%emt 0:00:00]} 31. b4 {[%emt 0:00:01]} Rhe8 {[%emt 0:00:04]} 32. Kb2 {[%emt 0:00:02]} h5 {[%emt 0:00:01]} 33. a4 {[%emt 0:00:05]} bxa4 {[%emt 0:00:02]} 34. Bxa6 {[%emt 0:00:07]} Re5 {[%emt 0:00:09]} 35. Bc4 {[%emt 0:00:06]} h4 {[%emt 0:00:01]} 36. Rf3 {[%emt 0:00:04]} a3+ {[%emt 0:00:08]} 37. Rxa3 {[%emt 0:00:13]} Rxa3 {[%emt 0:00:00]} 38. Kxa3 {[%emt 0:00:00]} Rg5 {[%emt 0:00:01]} 39. Bf1 {[%emt 0:00:01]} Rf5 {[%emt 0:00:03]} 40. Bd3 {[%emt 0:00:14]} Rf2 {[%emt 0:00:01]} 41. b5 {[%emt 0:00:07]} Rxg2 {[%emt 0:00:01]} 42. b6 {[%emt 0:00:01]} h3 {[%emt 0:00:00]} 43. Be4 {[%emt 0:00:07]} Rd2 {[%emt 0:00:08]} 44. b7 {[%emt 0:00:04]} Rd8 {[%emt 0:00:01]} 45. Nd7 {[%emt 0:00:02]} f5 {[%emt 0:00:01]} 46. Bd5 {[%emt 0:00:03]} g5 {[%emt 0:00:01]} 47. b8=Q {[%emt 0:00:04]} Rxb8 {[%emt 0:00:01]} 48. Nxb8 {[%emt 0:00:00]} g4 {[%emt 0:00:00]} 49. Nc6 {[%emt 0:00:04]} Kf6 {[%emt 0:00:05]} 50. c4 {[%emt 0:00:01]} g3 {[%emt 0:00:01]} 51. Nd4 {[%emt 0:00:01]} g2 {[%emt 0:00:03]} 52. Ne2 {[%emt 0:00:02]} f4 {[%emt 0:00:02]} 53. c5 {[%emt 0:00:02]} Ke5 {[%emt 0:00:01]} 54. Bf3 {[%emt 0:00:00]} Ke6 {[%emt 0:00:01]} 55. c6 {[%emt 0:00:01]} 1-0

[Event "Speed Chess Championship 2020"]
[Site "Online"]
[Date "2020.11.08"]
[Round "1.13"]
[White "So, Wesley"]
[Black "Abdusattorov, Nodirbek"]
[Result "1-0"]
[ECO "B15"]
[WhiteElo "2816"]
[BlackElo "2662"]
[Annotator "ChessBase"]
[PlyCount "81"]
[EventDate "2020.10.31"]
[EventType "k.o."]
[SourceTitle "playchess.com"]
[Source "ChessBase"]
[SourceQuality "1"]
[TimeControl "180+1"]

1. e4 {[%emt 0:00:01]} c6 {[%emt 0:00:01]} 2. d4 {[%emt 0:00:01]} d5 {[%emt 0:00:00]} 3. f3 {[%emt 0:00:01]} g6 {[%emt 0:00:01]} 4. Nc3 {[%emt 0:00:02]} Bg7 {[%emt 0:00:01]} 5. e5 {[%emt 0:00:01]} c5 {[%emt 0:00:03]} 6. f4 {[%emt 0:00:05]} cxd4 {[%emt 0:00:11]} 7. Qxd4 {[%emt 0:00:00]} Be6 {[%emt 0:00:06]} 8. Nf3 {[%emt 0:00:07]} Nh6 {[%emt 0:00:02]} 9. Bb5+ {[%emt 0:00:01]} Kf8 {[%emt 0:00:08]} 10. O-O {[%emt 0:00:04]} a6 {[%emt 0:00:03]} 11. Bd3 {[%emt 0:00:03]} Nc6 {[%emt 0:00:01]} 12. Qf2 {[%emt 0:00:01]} Ng4 {[%emt 0:00:03]} 13. Qe1 {[%emt 0:00:01]} h5 {[%emt 0:00:04]} 14. Ng5 {[%emt 0:00:03]} Qd7 {[%emt 0:00:50]} 15. Na4 {[%emt 0:00:06]} b5 {[%emt 0:00:17]} 16. Nc5 {[%emt 0:00:17]} Qa7 {[%emt 0:00:02]} 17. Ngxe6+ {[%emt 0:00:21]} fxe6 {[%emt 0:00:00]} 18. b4 {[%emt 0:00:01]} Kf7 {[%emt 0:00:02]} 19. Kh1 {[%emt 0:00:03]} a5 {[%emt 0:00:06]} 20. c3 {[%emt 0:00:03]} Rac8 {[%emt 0:00:08]} 21. Bd2 {[%emt 0:00:11]} axb4 {[%emt 0:00:20]} 22. cxb4 {[%emt 0:00:00]} Nd4 {[%emt 0:00:00]} 23. a4 {[%emt 0:00:11]} Rxc5 {[%emt 0:00:31]} 24. axb5 {[%emt 0:00:06]} Qc7 {[%emt 0:00:03]} 25. bxc5 {[%emt 0:00:01]} Qxc5 {[%emt 0:00:00]} 26. Bb4 {[%emt 0:00:10]} Qb6 {[%emt 0:00:02]} 27. Ra6 {[%emt 0:00:03]} Qb7 {[%emt 0:00:01]} 28. Bc5 {[%emt 0:00:12]} Nf5 {[%emt 0:00:04]} 29. Bxf5 {[%emt 0:00:06]} gxf5 {[%emt 0:00:09]} 30. Ra7 {[%emt 0:00:02]} Qxb5 {[%emt 0:00:00]} 31. Rxe7+ {[%emt 0:00:01]} Kg8 {[%emt 0:00:01]} 32. Bg1 {[%emt 0:00:06]} Rh6 {[%emt 0:00:02]} 33. h3 {[%emt 0:00:06]} Bf8 {[%emt 0:00:02]} 34. Rc7 {[%emt 0:00:01]} Rg6 {[%emt 0:00:05]} 35. hxg4 {[%emt 0:00:09]} hxg4 {[%emt 0:00:00]} 36. Bh2 {[%emt 0:00:03]} g3 {[%emt 0:00:02]} 37. Bxg3 {[%emt 0:00:03]} Bb4 {[%emt 0:00:01]} 38. Qf2 {[%emt 0:00:08]} Ba5 {[%emt 0:00:01]} 39. Rc5 {[%emt 0:00:05]} Qa6 {[%emt 0:00:03]} 40. Bh2 {[%emt 0:00:03]} Bb6 {[%emt 0:00:02]} 41. Rc6 {[%emt 0:00:00]} 1-0

[Event "Speed Chess Championship 2020"]
[Site "Online"]
[Date "2020.11.11"]
[Round "1.13"]
[White "Nepomniachtchi, Ian"]
[Black "Aronian, Levon"]
[Result "1/2-1/2"]
[ECO "A48"]
[WhiteElo "2784"]
[BlackElo "2781"]
[Annotator "ChessBase"]
[PlyCount "116"]
[EventDate "2020.10.31"]
[EventType "k.o."]
[SourceTitle "playchess.com"]
[Source "ChessBase"]
[SourceQuality "1"]
[TimeControl "180+1"]

1. e3 {[%emt 0:00:01]} g6 {[%emt 0:00:01]} 2. Nf3 {[%emt 0:00:00]} Bg7 {[%emt 0:00:00]} 3. d4 {[%emt 0:00:00]} Nf6 {[%emt 0:00:01]} 4. Nbd2 {[%emt 0:00:01]} O-O {[%emt 0:00:02]} 5. b4 {[%emt 0:00:01]} d6 {[%emt 0:00:01]} 6. Bb2 {[%emt 0:00:00]} c5 {[%emt 0:00:01]} 7. a3 {[%emt 0:00:04]} cxd4 {[%emt 0:00:02]} 8. exd4 {[%emt 0:00:03]} d5 {[%emt 0:00:04]} 9. Bd3 {[%emt 0:00:01]} Bg4 {[%emt 0:00:03]} 10. O-O {[%emt 0:00:01]} Nbd7 {[%emt 0:00:05]} 11. Re1 {[%emt 0:00:00]} Rc8 {[%emt 0:00:02]} 12. h3 {[%emt 0:00:02]} Bxf3 {[%emt 0:00:02]} 13. Qxf3 {[%emt 0:00:01]} e6 {[%emt 0:00:03]} 14. a4 {[%emt 0:00:02]} a5 {[%emt 0:00:08]} 15. b5 {[%emt 0:00:03]} Nb6 {[%emt 0:00:02]} 16. Nb3 {[%emt 0:00:13]} Nc4 {[%emt 0:00:16]} 17. Bc1 {[%emt 0:00:01]} Nd7 {[%emt 0:00:12]} 18. c3 {[%emt 0:00:08]} b6 {[%emt 0:00:04]} 19. Ra2 {[%emt 0:00:01]} Bf6 {[%emt 0:00:13]} 20. Bh6 {[%emt 0:00:02]} Re8 {[%emt 0:00:02]} 21. Rae2 {[%emt 0:00:02]} Bg5 {[%emt 0:00:10]} 22. Bxg5 {[%emt 0:00:10]} Qxg5 {[%emt 0:00:00]} 23. g3 {[%emt 0:00:06]} Qf6 {[%emt 0:00:02]} 24. Qxf6 {[%emt 0:00:31]} Nxf6 {[%emt 0:00:00]} 25. Rc1 {[%emt 0:00:02]} Rc7 {[%emt 0:00:02]} 26. Kf1 {[%emt 0:00:09]} Rec8 {[%emt 0:00:03]} 27. Ke1 {[%emt 0:00:01]} Nd6 {[%emt 0:00:04]} 28. Rec2 {[%emt 0:00:01]} Nfe4 {[%emt 0:00:07]} 29. Nd2 {[%emt 0:00:04]} Rxc3 {[%emt 0:01:02]} 30. Nxe4 {[%emt 0:00:04]} Rxc2 {[%emt 0:00:01]} 31. Rxc2 {[%emt 0:00:07]} dxe4 {[%emt 0:00:04]} 32. Rxc8+ {[%emt 0:00:02]} Nxc8 {[%emt 0:00:00]} 33. Bxe4 {[%emt 0:00:01]} Nd6 {[%emt 0:00:02]} 34. Bd3 {[%emt 0:00:02]} g5 {[%emt 0:00:09]} 35. Kd2 {[%emt 0:00:02]} h6 {[%emt 0:00:03]} 36. Ke3 {[%emt 0:00:01]} f6 {[%emt 0:00:03]} 37. f4 {[%emt 0:00:02]} Kf7 {[%emt 0:00:01]} 38. Kf3 {[%emt 0:00:06]} f5 {[%emt 0:00:05]} 39. fxg5 {[%emt 0:00:22]} hxg5 {[%emt 0:00:01]} 40. h4 {[%emt 0:00:00]} Kf6 {[%emt 0:00:02]} 41. hxg5+ {[%emt 0:00:13]} Kxg5 {[%emt 0:00:01]} 42. Bc2 {[%emt 0:00:00]} Kf6 {[%emt 0:00:03]} 43. Kf4 {[%emt 0:00:04]} Ne8 {[%emt 0:00:04]} 44. g4 {[%emt 0:00:18]} fxg4 {[%emt 0:00:01]} 45. Bd1 {[%emt 0:00:06]} Nc7 {[%emt 0:00:05]} 46. Bxg4 {[%emt 0:00:01]} Nd5+ {[%emt 0:00:02]} 47. Ke4 {[%emt 0:00:00]} Nc3+ {[%emt 0:00:03]} 48. Kd3 {[%emt 0:00:01]} Nd5 {[%emt 0:00:01]} 49. Ke4 {[%emt 0:00:04]} Nc3+ {[%emt 0:00:01]} 50. Kd3 {[%emt 0:00:01]} Nd5 {[%emt 0:00:00]} 51. Bf3 {[%emt 0:00:01]} Ke7 {[%emt 0:00:02]} 52. Bxd5 {[%emt 0:00:06]} exd5 {[%emt 0:00:00]} 53. Ke3 {[%emt 0:00:00]} Ke6 {[%emt 0:00:01]} 54. Kf4 {[%emt 0:00:02]} Kf6 {[%emt 0:00:00]} 55. Kg4 {[%emt 0:00:01]} Kg6 {[%emt 0:00:01]} 56. Kf4 {[%emt 0:00:00]} Kf6 {[%emt 0:00:01]} 57. Kg4 {[%emt 0:00:00]} Kg6 {[%emt 0:00:00]} 58. Kf4 {[%emt 0:00:00]} Kf6 {[%emt 0:00:01]} 1/2-1/2

[Event "Speed Chess Championship 2020"]
[Site "Online"]
[Date "2020.11.04"]
[Round "1.13"]
[White "Firouzja, Alireza"]
[Black "Fedoseev, Vladimir"]
[Result "1-0"]
[ECO "D77"]
[WhiteElo "2749"]
[BlackElo "2676"]
[Annotator "ChessBase"]
[PlyCount "101"]
[EventDate "2020.10.31"]
[EventType "k.o."]
[SourceTitle "playchess.com"]
[Source "ChessBase"]
[SourceQuality "1"]
[TimeControl "180+1"]

1. Nf3 {[%emt 0:00:01]} Nf6 {[%emt 0:00:01]} 2. g3 {[%emt 0:00:00]} g6 {[%emt 0:00:00]} 3. Bg2 {[%emt 0:00:01]} Bg7 {[%emt 0:00:00]} 4. O-O {[%emt 0:00:00]} O-O {[%emt 0:00:01]} 5. d4 {[%emt 0:00:00]} d5 {[%emt 0:00:01]} 6. c4 {[%emt 0:00:02]} dxc4 {[%emt 0:00:00]} 7. Na3 {[%emt 0:00:01]} Nc6 {[%emt 0:00:06]} 8. Nxc4 {[%emt 0:00:03]} Nd5 {[%emt 0:00:01]} 9. e3 {[%emt 0:00:07]} Nb6 {[%emt 0:00:06]} 10. b3 {[%emt 0:00:21]} Nxc4 {[%emt 0:00:07]} 11. bxc4 {[%emt 0:00:01]} e5 {[%emt 0:00:01]} 12. Ba3 {[%emt 0:00:01]} Re8 {[%emt 0:00:01]} 13. d5 {[%emt 0:00:01]} Na5 {[%emt 0:00:05]} 14. Rc1 {[%emt 0:00:04]} b6 {[%emt 0:00:03]} 15. Nd2 {[%emt 0:00:14]} Bd7 {[%emt 0:00:29]} 16. Nb3 {[%emt 0:00:28]} Nxb3 {[%emt 0:00:07]} 17. Qxb3 {[%emt 0:00:10]} e4 {[%emt 0:00:01]} 18. Rfd1 {[%emt 0:00:03]} Bg4 {[%emt 0:00:13]} 19. Rd2 {[%emt 0:00:01]} c5 {[%emt 0:00:01]} 20. Bb2 {[%emt 0:00:10]} Qd6 {[%emt 0:00:01]} 21. a4 {[%emt 0:00:11]} Rab8 {[%emt 0:00:03]} 22. Bxg7 {[%emt 0:00:06]} Kxg7 {[%emt 0:00:02]} 23. a5 {[%emt 0:00:01]} Bd7 {[%emt 0:00:07]} 24. axb6 {[%emt 0:00:14]} axb6 {[%emt 0:00:02]} 25. Bf1 {[%emt 0:00:05]} Ra8 {[%emt 0:00:04]} 26. Rb2 {[%emt 0:00:05]} Reb8 {[%emt 0:00:03]} 27. Rcb1 {[%emt 0:00:04]} Qf6 {[%emt 0:00:12]} 28. Qc2 {[%emt 0:00:03]} Ra3 {[%emt 0:00:14]} 29. h4 {[%emt 0:00:24]} Bg4 {[%emt 0:00:04]} 30. Bg2 {[%emt 0:00:05]} Rc3 {[%emt 0:00:04]} 31. Qa4 {[%emt 0:00:02]} Bf3 {[%emt 0:00:11]} 32. Qa7 {[%emt 0:00:06]} Rc1+ {[%emt 0:00:30]} 33. Rxc1 {[%emt 0:00:01]} Qxb2 {[%emt 0:00:01]} 34. Rf1 {[%emt 0:00:01]} Qe5 {[%emt 0:00:05]} 35. Bxf3 {[%emt 0:00:07]} exf3 {[%emt 0:00:01]} 36. Rd1 {[%emt 0:00:02]} Qd6 {[%emt 0:00:12]} 37. e4 {[%emt 0:00:04]} Re8 {[%emt 0:00:02]} 38. Re1 {[%emt 0:00:00]} Qf6 {[%emt 0:00:09]} 39. Qa3 {[%emt 0:00:03]} Qd4 {[%emt 0:00:03]} 40. Qxf3 {[%emt 0:00:01]} Qxc4 {[%emt 0:00:01]} 41. e5 {[%emt 0:00:00]} Qd4 {[%emt 0:00:01]} 42. Qf6+ {[%emt 0:00:01]} Kg8 {[%emt 0:00:01]} 43. h5 {[%emt 0:00:04]} Qd2 {[%emt 0:00:03]} 44. Re3 {[%emt 0:00:03]} Qd1+ {[%emt 0:00:01]} 45. Kh2 {[%emt 0:00:01]} Qxh5+ {[%emt 0:00:01]} 46. Kg2 {[%emt 0:00:00]} Qd1 {[%emt 0:00:00]} 47. d6 {[%emt 0:00:02]} Qd5+ {[%emt 0:00:01]} 48. Rf3 {[%emt 0:00:01]} c4 {[%emt 0:00:03]} 49. Kh2 {[%emt 0:00:01]} Qe6 {[%emt 0:00:02]} 50. Qf4 {[%emt 0:00:02]} b5 {[%emt 0:00:01]} 51. Qd4 {[%emt 0:00:00]} 1-0

[Event "Speed Chess Championship 2020"]
[Site "Online"]
[Date "2020.11.12"]
[Round "1.13"]
[White "Nakamura, Hikaru"]
[Black "Martirosyan, Haik M."]
[Result "1/2-1/2"]
[ECO "D37"]
[WhiteElo "2736"]
[BlackElo "2622"]
[Annotator "RC"]
[PlyCount "118"]
[EventDate "2020.10.31"]
[EventType "k.o."]
[SourceTitle "playchess.com"]
[Source "ChessBase"]
[SourceQuality "1"]
[TimeControl "180+1"]

1. Nf3 {[%emt 0:00:01]} Nf6 {[%emt 0:00:01]} 2. d4 {[%emt 0:00:00]} e6 {[%emt 0:00:00]} 3. c4 {[%emt 0:00:00]} d5 {[%emt 0:00:00]} 4. Nc3 {[%emt 0:00:05]} Be7 {[%emt 0:00:01]} 5. Bf4 {[%emt 0:00:03]} O-O {[%emt 0:00:01]} 6. e3 {[%emt 0:00:01]} Nbd7 {[%emt 0:00:01]} 7. Be2 {[%emt 0:00:01]} dxc4 {[%emt 0:00:08]} 8. O-O {[%emt 0:00:01]} a6 {[%emt 0:00:02]} 9. a4 {[%emt 0:00:01]} c5 {[%emt 0:00:01]} 10. Bxc4 {[%emt 0:00:02]} cxd4 {[%emt 0:00:12]} 11. exd4 {[%emt 0:00:05]} Nb6 {[%emt 0:00:03]} 12. Bd3 {[%emt 0:00:01]} Nbd5 {[%emt 0:00:03]} 13. Bg5 {[%emt 0:00:02]} b6 {[%emt 0:00:11]} 14. Nxd5 {[%emt 0:00:17]} Nxd5 {[%emt 0:00:04]} 15. Bxe7 {[%emt 0:00:01]} Qxe7 {[%emt 0:00:03]} 16. Be4 {[%emt 0:00:00]} Bb7 {[%emt 0:00:02]} 17. Qb3 {[%emt 0:00:01]} a5 {[%emt 0:00:12]} 18. Ne5 {[%emt 0:00:07]} Rac8 {[%emt 0:00:16]} 19. Rac1 {[%emt 0:00:09]} Rxc1 {[%emt 0:00:13]} 20. Rxc1 {[%emt 0:00:00]} Nf4 {[%emt 0:00:01]} 21. Qe3 {[%emt 0:00:26]} Bxe4 {[%emt 0:00:15]} 22. Qxe4 {[%emt 0:00:07]} Nd5 {[%emt 0:00:09]} 23. Rc4 {[%emt 0:00:01]} g6 {[%emt 0:00:10]} 24. g3 {[%emt 0:00:02]} Qb7 {[%emt 0:00:07]} 25. Ng4 {[%emt 0:00:07]} Qd7 {[%emt 0:00:22]} 26. Ne5 {[%emt 0:00:47]} Qb7 {[%emt 0:00:01]} 27. Ng4 {[%emt 0:00:01]} Qd7 {[%emt 0:00:02]} 28. Qe5 {[%emt 0:00:05]} f6 {[%emt 0:00:03]} 29. Qe2 {[%emt 0:00:01]} Rd8 {[%emt 0:00:03]} 30. b3 {[%emt 0:00:02]} Kg7 {[%emt 0:00:02]} 31. h4 {[%emt 0:00:02]} h5 {[%emt 0:00:01]} 32. Ne3 {[%emt 0:00:01]} Ne7 {[%emt 0:00:03]} 33. Ng2 {[%emt 0:00:02]} Nf5 {[%emt 0:00:03]} 34. Nf4 {[%emt 0:00:01]} Kf7 {[%emt 0:00:02]} 35. Qe4 {[%emt 0:00:02]} Ne7 {[%emt 0:00:13]} 36. Rc1 {[%emt 0:00:09]} Rc8 {[%emt 0:00:01]} 37. Re1 {[%emt 0:00:07]} Rc6 {[%emt 0:00:02]} 38. Re3 {[%emt 0:00:10]} Rd6 {[%emt 0:00:00]} 39. Re1 {[%emt 0:00:01]} Nf5 {[%emt 0:00:04]} 40. Qc2 {[%emt 0:00:05]} Qc6 {[%emt 0:00:10]} 41. Qd3 {[%emt 0:00:08]} Rxd4 {[%emt 0:00:03]} 42. Qa6 {[%emt 0:00:01]} e5 {[%emt 0:00:02]} 43. Ng2 {[%emt 0:00:04]} Rd7 {[%emt 0:00:02]} 44. Qc4+ {[%emt 0:00:05]} Qxc4 {[%emt 0:00:02]} 45. bxc4 {[%emt 0:00:00]} Nd4 {[%emt 0:00:00]} 46. Rb1 {[%emt 0:00:00]} Rd6 {[%emt 0:00:00]} 47. Ne3 {[%emt 0:00:02]} Ne6 {[%emt 0:00:02]} 48. Nd5 {[%emt 0:00:01]} Nc5 {[%emt 0:00:02]} 49. Nxb6 {[%emt 0:00:00]} Rd2 {[%emt 0:00:01]} 50. Nd5 {[%emt 0:00:01]} f5 {[%emt 0:00:04]} 51. Rb5 {[%emt 0:00:06]} Nd3 {[%emt 0:00:02]} 52. Rxa5 {[%emt 0:00:01]} Rxf2 {[%emt 0:00:01]} 53. Ra7+ {[%emt 0:00:00]} Kf8 {[%emt 0:00:01]} 54. Nf6 {[%emt 0:00:01]} Ra2 {[%emt 0:00:01]} 55. Rd7 {[%emt 0:00:01]} e4 {[%emt 0:00:01]} 56. Nh7+ {[%emt 0:00:03]} Ke8 {[%emt 0:00:01]} 57. Nf6+ {[%emt 0:00:00]} Kf8 {[%emt 0:00:00]} 58. Nh7+ {[%emt 0:00:00]} Ke8 {[%emt 0:00:01]} 59. Nf6+ {[%emt 0:00:00]} Kf8 {[%emt 0:00:00]} 1/2-1/2

[Event "Speed Chess Championship 2020"]
[Site "Online"]
[Date "2020.11.16"]
[Round "1.14"]
[White "Giri, Anish"]
[Black "Artemiev, Vladislav"]
[Result "1-0"]
[ECO "C42"]
[WhiteElo "2764"]
[BlackElo "2708"]
[Annotator "ChessBase"]
[PlyCount "57"]
[EventDate "2020.10.31"]
[EventType "k.o."]
[EventCountry "NET"]
[SourceTitle "playchess.com"]
[Source "ChessBase"]
[SourceQuality "1"]
[TimeControl "180+1"]

1. e4 {[%emt 0:00:01]} e5 {[%emt 0:00:01]} 2. Nf3 {[%emt 0:00:00]} Nf6 {[%emt 0:00:00]} 3. Nxe5 {[%emt 0:00:02]} d6 {[%emt 0:00:01]} 4. Nf3 {[%emt 0:00:00]} Nxe4 {[%emt 0:00:00]} 5. d4 {[%emt 0:00:00]} Be7 {[%emt 0:00:03]} 6. Bd3 {[%emt 0:00:01]} Nf6 {[%emt 0:00:00]} 7. O-O {[%emt 0:00:01]} O-O {[%emt 0:00:01]} 8. h3 {[%emt 0:00:01]} b6 {[%emt 0:00:01]} 9. c4 {[%emt 0:00:01]} Bb7 {[%emt 0:00:01]} 10. Nc3 {[%emt 0:00:01]} d5 {[%emt 0:00:00]} 11. Bf4 {[%emt 0:00:04]} Nbd7 {[%emt 0:00:06]} 12. Re1 {[%emt 0:00:03]} Bd6 {[%emt 0:00:34]} 13. Bg5 {[%emt 0:00:03]} h6 {[%emt 0:00:05]} 14. Bh4 {[%emt 0:00:01]} dxc4 {[%emt 0:00:09]} 15. Bxc4 {[%emt 0:00:02]} a6 {[%emt 0:00:06]} 16. a4 {[%emt 0:00:04]} c5 {[%emt 0:00:06]} 17. dxc5 {[%emt 0:00:25]} Bxc5 {[%emt 0:00:10]} 18. Bd5 {[%emt 0:00:03]} Bxd5 {[%emt 0:00:05]} 19. Nxd5 {[%emt 0:00:02]} g5 {[%emt 0:00:28]} 20. Nxg5 {[%emt 0:00:19]} Nxd5 {[%emt 0:00:22]} 21. Qxd5 {[%emt 0:00:04]} hxg5 {[%emt 0:00:11]} 22. Bxg5 {[%emt 0:00:01]} Qc7 {[%emt 0:00:01]} 23. Bh6 {[%emt 0:00:08]} Qd6 {[%emt 0:00:20]} 24. Qxd6 {[%emt 0:00:04]} Bxd6 {[%emt 0:00:00]} 25. Rad1 {[%emt 0:00:21]} Bc5 {[%emt 0:00:04]} 26. Rxd7 {[%emt 0:00:03]} Rfe8 {[%emt 0:00:00]} 27. Rxe8+ {[%emt 0:00:12]} Rxe8 {[%emt 0:00:02]} 28. Kf1 {[%emt 0:00:00]} Re6 {[%emt 0:00:06]} 29. Bd2 {[%emt 0:00:08]} 1-0

[Event "Speed Chess Championship 2020"]
[Site "Online"]
[Date "2020.11.08"]
[Round "1.15"]
[White "So, Wesley"]
[Black "Abdusattorov, Nodirbek"]
[Result "1-0"]
[ECO "B15"]
[WhiteElo "2816"]
[BlackElo "2662"]
[Annotator "ChessBase"]
[PlyCount "59"]
[EventDate "2020.10.31"]
[EventType "k.o."]
[SourceTitle "playchess.com"]
[Source "ChessBase"]
[SourceQuality "1"]
[TimeControl "180+1"]

1. e4 {[%emt 0:00:01]} c6 {[%emt 0:00:01]} 2. d4 {[%emt 0:00:00]} d5 {[%emt 0:00:00]} 3. Nc3 {[%emt 0:00:01]} dxe4 {[%emt 0:00:01]} 4. Nxe4 {[%emt 0:00:00]} Nf6 {[%emt 0:00:01]} 5. Nxf6+ {[%emt 0:00:01]} exf6 {[%emt 0:00:00]} 6. c3 {[%emt 0:00:00]} Bd6 {[%emt 0:00:01]} 7. Bd3 {[%emt 0:00:01]} O-O {[%emt 0:00:02]} 8. Ne2 {[%emt 0:00:00]} Re8 {[%emt 0:00:03]} 9. Qc2 {[%emt 0:00:03]} h5 {[%emt 0:00:01]} 10. Be3 {[%emt 0:00:03]} Nd7 {[%emt 0:00:01]} 11. O-O-O {[%emt 0:00:01]} Nf8 {[%emt 0:00:00]} 12. h3 {[%emt 0:00:04]} Be6 {[%emt 0:00:15]} 13. Kb1 {[%emt 0:00:01]} a5 {[%emt 0:00:04]} 14. Nf4 {[%emt 0:00:04]} Bxf4 {[%emt 0:00:04]} 15. Bxf4 {[%emt 0:00:00]} b5 {[%emt 0:00:03]} 16. g4 {[%emt 0:00:32]} Qd5 {[%emt 0:00:04]} 17. c4 {[%emt 0:00:10]} bxc4 {[%emt 0:00:15]} 18. Be4 {[%emt 0:00:00]} Qb5 {[%emt 0:00:01]} 19. a4 {[%emt 0:00:06]} Qb6 {[%emt 0:00:40]} 20. gxh5 {[%emt 0:00:03]} Rad8 {[%emt 0:00:09]} 21. Rhg1 {[%emt 0:00:08]} Bd5 {[%emt 0:00:35]} 22. Bxd5 {[%emt 0:00:04]} Rxd5 {[%emt 0:00:00]} 23. Bh6 {[%emt 0:00:01]} Ne6 {[%emt 0:00:03]} 24. Bxg7 {[%emt 0:00:05]} Nxg7 {[%emt 0:00:01]} 25. h6 {[%emt 0:00:01]} Rg5 {[%emt 0:00:01]} 26. h4 {[%emt 0:00:12]} Rxg1 {[%emt 0:00:25]} 27. Rxg1 {[%emt 0:00:00]} Kh8 {[%emt 0:00:23]} 28. Rxg7 {[%emt 0:00:06]} Re1+ {[%emt 0:00:01]} 29. Ka2 {[%emt 0:00:01]} f5 {[%emt 0:00:05]} 30. Qxc4 {[%emt 0:00:04]} 1-0